fUST/lending_fUST_20240725
["ID","MTS","AMOUNT","RATE_DAILY","PERIOD"]
[333123553,1721878244555,-500.0,0.00013698,2]
[333123555,1721878244564,-505.97928262,0.00013698,2]
[333123557,1721878244573,-500.0,0.00013698,2]
[333123559,1721878244582,-500.0,0.00013698,2]
[333123561,1721878244592,-500.0,0.00013698,2]
[333123563,1721878244601,-1428.79,0.00013698,2]
[333123565,1721878244610,-500.0,0.00013698,2]
[333123566,1721878244619,-500.0,0.00013698,2]
[333123568,1721878244628,-206.48940271,0.00013698,2]
[333123570,1721878244637,-173.16149563,0.00013698,2]
[333123573,1721878244649,-326.83850437,0.00013698,2]
[333123575,1721878244658,-348.61308731,0.00013698,2]
[333123577,1721878244667,-500.0,0.00013698,2]
[333123578,1721878244676,-500.11192929,0.00013698,2]
[333123580,1721878244685,-500.0,0.00013698,2]
[333123582,1721878244694,-500.0,0.00013698,2]
[333123584,1721878244704,-500.0,0.00013698,2]
[333123586,1721878244713,-500.0,0.00013698,2]
[333123588,1721878244723,-500.0,0.00013698,2]
[333123590,1721878244732,-503.2947434,0.00013698,2]
[333123592,1721878244741,-508.73304228,0.00013698,2]
[333123594,1721878244751,-500.0,0.00013698,2]
[333123597,1721878244761,-500.0,0.00013698,2]
[333123598,1721878244770,-500.0,0.00013698,2]
[333123600,1721878244779,-644.29826713,0.00013698,2]
[333123602,1721878244790,-500.0,0.00013698,2]
[333123604,1721878244799,-500.0,0.00013698,2]
[333123606,1721878244808,-500.0,0.00013698,2]
[333123608,1721878244817,-500.0,0.00013698,2]
[333123611,1721878244827,-209.80438253,0.00013698,2]
[333123734,1721878247579,-261.81,9.999e-05,2]
[333123735,1721878247593,-521.25362585,9.999e-05,2]
[333123736,1721878247603,-198.53637415,0.000129,2]
[333123737,1721878247614,-1768.75239199,0.000129,2]
[333123738,1721878247624,-290.19561747,0.00013698,2]
[333123739,1721878247634,-500.0,0.00013698,2]
[333123740,1721878247645,-500.0,0.00013698,2]
[333123741,1721878247657,-180.43089525,0.00013698,2]
[333123742,1721878247668,-597.89517469,0.00013698,2]
[333123743,1721878247680,-549.70153366,0.00013698,2]
[333123744,1721878247690,-500.0,0.00013698,2]
[333123745,1721878247700,-503.41575297,0.00013698,2]
[333123746,1721878247711,-568.57275059,0.00013698,2]
[333123747,1721878247722,-506.58152275,0.00013698,2]
[333123748,1721878247732,-500.0,0.00013698,2]
[333123749,1721878247744,-500.0,0.00013698,2]
[333123750,1721878247755,-500.0,0.00013698,2]
[333123751,1721878247768,-514.28646821,0.00013698,2]
[333123752,1721878247779,-500.74768592,0.00013698,2]
[333123754,1721878247789,-528.94,0.00013698,2]
[333123756,1721878247799,-501.62336068,0.00013698,2]
[333123757,1721878247811,-501.64690315,0.00013698,2]
[333123759,1721878247821,-500.0,0.00013698,2]
[333123761,1721878247831,-505.75320243,0.00013698,2]
[333123762,1721878247842,-500.0,0.00013698,2]
[333123764,1721878247851,-502.17267503,0.00013698,2]
[333123766,1721878247862,-500.0,0.00013698,2]
[333123768,1721878247872,-500.0,0.00013698,2]
[333123770,1721878247882,-500.0,0.00013698,2]
[333123772,1721878247893,-500.0,0.00013698,2]
[333123774,1721878247906,-500.0,0.00013698,2]
[333123776,1721878247917,-520.11789734,0.00013698,2]
[333123778,1721878247928,-500.0,0.00013698,2]
[333123780,1721878247938,-888.48,0.00013698,2]
[333123782,1721878247949,-483.52912411,0.00013698,2]
[333123785,1721878247960,-118.34450159,0.00013698,2]
[333124746,1721879193660,-301.60667987,9.32e-05,2]
[333124752,1721879365127,-300.0,9.319e-05,2]
[333124753,1721879365153,-300.0,9.319e-05,2]
[333124754,1721879365175,-313.75999149,9.32e-05,2]
[333124755,1721879365197,-301.1743076,9.32e-05,2]
[333124756,1721879365220,-161.21328073,9.32e-05,2]
[333124757,1721879365243,-199.00091499,9.32e-05,2]
[333124758,1721879365266,-154.71377951,9.32e-05,2]
[333124759,1721879365289,-3782.59755445,9.32e-05,2]
[333124760,1721879365310,-2172.58590131,9.32e-05,2]
[333124761,1721879365331,-4708.68993712,9.32e-05,2]
[333124762,1721879365357,-19447.75666053,9.32e-05,2]
[333124763,1721879365382,-154.95251458,9.32e-05,2]
[333124764,1721879365403,-218.17416967,9.32e-05,2]
[333124765,1721879365426,-859.20761664,9.32e-05,2]
[333124766,1721879365449,-16274.21667808,9.32e-05,2]
[333124767,1721879365471,-200.0,9.32e-05,2]
[333124768,1721879365491,-164.24967346,9.32e-05,2]
[333124769,1721879365512,-200.0,9.32e-05,2]
[333124770,1721879365534,-24900.0,9.338e-05,2]
[333124771,1721879365556,-404.41023413,9.999e-05,2]
[333124772,1721879365577,-154.9358117,9.999e-05,2]
[333124773,1721879365599,-542.61757791,9.999e-05,2]
[333124774,1721879365620,-240.59744191,9.999e-05,2]
[333124775,1721879365640,-778.99945191,9.999e-05,2]
[333124776,1721879365661,-155.23302237,9.999e-05,2]
[333124777,1721879365681,-154.71377951,9.999e-05,2]
[333124778,1721879365704,-600.34409866,9.999e-05,2]
[333124779,1721879365731,-154.71377951,9.999e-05,2]
[333124780,1721879365753,-154.71377951,9.999e-05,2]
[333124781,1721879365776,-155.72999464,9.999e-05,2]
[333124782,1721879365799,-533.46933228,9.999e-05,2]
[333124783,1721879365822,-154.77243678,9.999e-05,2]
[333124784,1721879365845,-154.76012181,9.999e-05,2]
[333124785,1721879365866,-968.29265867,9.999e-05,2]
[333124786,1721879365888,-265.37259384,9.999e-05,2]
[333124787,1721879365912,-154.71377951,9.999e-05,2]
[333124788,1721879365933,-154.71377951,9.999e-05,2]
[333124789,1721879365957,-201.30530872,9.999e-05,2]
[333124790,1721879365979,-206.07691111,9.999e-05,2]
[333124791,1721879366004,-180.32453325,9.999e-05,2]
[333124792,1721879366026,-302.30129958,9.999e-05,2]
[333124793,1721879366050,-154.76906899,9.999e-05,2]
[333124794,1721879366073,-288.28494131,9.999e-05,2]
[333124795,1721879366098,-160.02872969,9.999e-05,2]
[333124796,1721879366121,-155.0398144,9.999e-05,2]
[333124797,1721879366143,-725.46017295,9.999e-05,2]
[333124798,1721879366167,-154.86806872,9.999e-05,2]
[333124799,1721879366187,-154.71377951,9.999e-05,2]
[333124800,1721879366208,-196.26871937,9.999e-05,2]
[333124801,1721879366228,-1050.43870268,9.999e-05,2]
[333124802,1721879366248,-208.57429241,9.999e-05,2]
[333124803,1721879366269,-531.48394827,9.999e-05,2]
[333124804,1721879366290,-617.09611864,9.999e-05,2]
[333124805,1721879366311,-155.93714239,9.999e-05,2]
[333124806,1721879366333,-154.71377951,9.999e-05,2]
[333124807,1721879366357,-154.71377951,9.999e-05,2]
[333124808,1721879366381,-154.9128921,9.999e-05,2]
[333124809,1721879366403,-154.96882953,9.999e-05,2]
[333124810,1721879366426,-568.08421519,9.999e-05,2]
[333124811,1721879366455,-162.92919601,9.999e-05,2]
[333124812,1721879366486,-248.87416602,9.999e-05,2]
[333124813,1721879366515,-154.71377951,9.999e-05,2]
[333124814,1721879366540,-200.0,9.999e-05,2]
[333124815,1721879366570,-219.80294038,9.999e-05,2]
[333124816,1721879366597,-154.71377951,9.999e-05,2]
[333124817,1721879366627,-474.48048664,9.999e-05,2]
[333124818,1721879366655,-513.73213957,9.999e-05,2]
[333124819,1721879366684,-160.38928641,9.999e-05,2]
[333124820,1721879366712,-157.58767969,9.999e-05,2]
[333124821,1721879366739,-156.59792059,9.999e-05,2]
[333124822,1721879366767,-154.92240537,9.999e-05,2]
[333124823,1721879366792,-154.81874392,9.999e-05,2]
[333124824,1721879366815,-731.30595831,9.999e-05,2]
[333124825,1721879366840,-848.67298078,9.999e-05,2]
[333124826,1721879366867,-156.4756886,9.999e-05,2]
[333124827,1721879366894,-179.86740491,9.999e-05,2]
[333124828,1721879366921,-343.06087437,9.999e-05,2]
[333124829,1721879366950,-154.71377951,9.999e-05,2]
[333124830,1721879366978,-459.2503171,9.999e-05,2]
[333124831,1721879367002,-188.0737834,9.999e-05,2]
[333124832,1721879367033,-493.81009187,9.999e-05,2]
[333124833,1721879367064,-154.71377951,9.999e-05,2]
[333124834,1721879367093,-311.40859898,9.999e-05,2]
[333124835,1721879367122,-522.56731629,9.999e-05,2]
[333124836,1721879367152,-154.77557542,9.999e-05,2]
[333124837,1721879367182,-375.56627462,9.999e-05,2]
[333124838,1721879367207,-403.39616838,9.999e-05,2]
[333124839,1721879367233,-190.16980305,9.999e-05,2]
[333124840,1721879367262,-154.71377951,0.0001,2]
[333124841,1721879367291,-154.71377951,0.0001,2]
[333124842,1721879367317,-390.81700465,0.0001,2]
[333124843,1721879367345,-200.57192957,0.0001,2]
[333124844,1721879367377,-420.0,0.00010251,2]
[333124845,1721879367403,-420.0,0.00010251,2]
[333124846,1721879367430,-174.715311,0.00010508,2]
[333124847,1721879367457,-174.715311,0.00010645,2]
[333124848,1721879367483,-400.0,0.0001069,2]
[333124849,1721879367511,-206.16981217,0.0001069,2]
[333124850,1721879367539,-174.715311,0.00010781,2]
[333124851,1721879367568,-174.715311,0.00010918,2]
[333124852,1721879367595,-174.715311,0.00011055,2]
[333124853,1721879367624,-587.0,0.00011276,2]
[333124854,1721879367653,-587.0,0.00011276,2]
[333124855,1721879367791,615.36667136,9.219e-05,2]
[333124856,1721879369174,273.37336231,9.9e-05,2]
[333124857,1721879370655,200.0,9.32e-05,2]
[333124858,1721879370692,400.0,0.0001069,2]
[333124860,1721879378366,273.37336231,9.9e-05,2]
[333124861,1721879386609,273.37336231,9.9e-05,2]
[333124862,1721879395199,273.37336231,9.9e-05,2]
[333124864,1721879397474,180.29478861,0.00011297,2]
[333124865,1721879400819,639.92755046,0.00011297,2]
[333124966,1721879432879,-273.37336231,9.9e-05,2]
[333124970,1721879432903,-300.0,0.00011296,2]
[333124972,1721879432916,-204.094119,0.00011297,2]
[333124975,1721879432934,-1392.53878483,0.00011297,2]
[333124977,1721879432946,-848.54825264,0.00011297,2]
[333125222,1721879437907,-16362.6479536,0.00011297,2]
[333125224,1721879437919,-154.79541367,0.00011297,2]
[333125227,1721879437932,-731.30595831,0.00011297,2]
[333125229,1721879437941,-207.83899162,0.00011297,2]
[333125231,1721879437951,-3782.59755445,0.00012,2]
[333125232,1721879437961,-16274.21667808,0.00012,2]
[333125234,1721879437970,-403.39616838,0.00012,2]
[333125237,1721879437981,-156.54779327,0.00012,2]
[333125239,1721879437991,-188.0737834,0.00012,2]
[333125241,1721879438001,-968.29265867,0.00012,2]
[333125243,1721879438012,-2030.65796342,0.00012,2]
[333125245,1721879438023,-337.50052125,0.00012,2]
[333125247,1721879438034,-329.68858426,0.00012,2]
[333125250,1721879438047,-154.71377951,0.00012,2]
[333125252,1721879438058,-532.10693816,0.00012,2]
[333125254,1721879438070,-154.71377951,0.00012,2]
[333125257,1721879438082,-154.88244705,0.00012,2]
[333125259,1721879438093,-191.44904302,0.00012,2]
[333125261,1721879438105,-643.6256542,0.00012,2]
[333125263,1721879438116,-297.23375743,0.00012,2]
[333125266,1721879438127,-163.06804582,0.00012,2]
[333125268,1721879438139,-568.60478461,0.00012,2]
[333125270,1721879438150,-201.30530872,0.00012,2]
[333125273,1721879438172,-154.71377951,0.00012,2]
[333125275,1721879438181,-159.99043494,0.00012,2]
[333125277,1721879438191,-154.71377951,0.00012,2]
[333125279,1721879438200,-154.71377951,0.00012,2]
[333125281,1721879438212,-248.87416602,0.00012,2]
[333125282,1721879438222,-459.2503171,0.00012,2]
[333125283,1721879438232,-154.85535597,0.00012,2]
[333125284,1721879438243,-201.30530872,0.00012,2]
[333125285,1721879438252,-154.71377951,0.00012,2]
[333125286,1721879438264,-600.0,0.00012467,2]
[333125287,1721879438275,-206.7208342,0.00012494,2]
[333125288,1721879438285,-293.9641968,0.00012878,2]
[333125289,1721879438297,-293.9641968,0.00012878,2]
[333125290,1721879438309,-293.9641968,0.00012878,2]
[333125291,1721879438319,-300.0,0.00013391,2]
[333125292,1721879438330,-5056.05551408,0.00013392,2]
[333125293,1721879438341,-200.0,0.00013425,2]
[333125294,1721879438352,-5056.05551406,0.00013444,2]
[333125295,1721879438362,-5056.05551406,0.00013495,2]
[333125296,1721879438372,-54291.9844335,0.000135,2]
[333125297,1721879438383,-150.112233,0.000135,2]
[333125298,1721879438398,-150.112233,0.000135,2]
[333125299,1721879438410,-150.112233,0.000135,2]
[333125300,1721879438421,-306.0,0.00013534,2]
[333125301,1721879438431,-153.0,0.00013534,2]
[333125302,1721879438443,-306.7602232,0.00013534,2]
[333125303,1721879438454,-153.0,0.00013534,2]
[333125304,1721879438464,-153.0,0.00013534,2]
[333125305,1721879438476,-153.0,0.00013534,2]
[333125306,1721879438489,-153.0,0.00013534,2]
[333125307,1721879438502,-293.9641968,0.00013534,2]
[333125308,1721879438515,-153.0,0.00013534,2]
[333125310,1721879438528,-293.9641968,0.00013534,2]
[333125312,1721879438540,-293.9641968,0.00013534,2]
[333125314,1721879438550,-153.0,0.00013534,2]
[333125316,1721879438562,-293.9641968,0.00013534,2]
[333125318,1721879438574,-293.9641968,0.00013534,2]
[333125321,1721879438585,-293.4286356,0.00013534,2]
[333125323,1721879438597,-5306.88604622,0.00013542,2]
[333125325,1721879438608,-5056.05551406,0.00013547,2]
[333125327,1721879438618,-151.49154258,0.00013576,2]
[333125329,1721879438631,-2000.0,0.00013588,2]
[333125332,1721879438642,-5056.05551406,0.00013598,2]
[333125334,1721879438652,-200.0,0.00013598,2]
[333125336,1721879438663,-153.0,0.000136,2]
[333125338,1721879438674,-3143.54096217,0.000136,2]
[333125340,1721879438684,-150.112233,0.000136,2]
[333125342,1721879438696,-150.112233,0.000136,2]
[333125344,1721879438708,-150.112233,0.000136,2]
[333125347,1721879438719,-150.112233,0.000136,2]
[333125349,1721879438731,-150.112233,0.000136,2]
[333125351,1721879438742,-367.51233122,0.00013608,2]
[333125353,1721879438754,-6558.32155551,0.00013641,2]
[333125355,1721879438765,-2001.89180169,0.00013686,2]
[333125358,1721879438776,-151.0,0.00013698,2]
[333125360,1721879438787,-4619.04046055,0.00013698,2]
[333125362,1721879438798,-1112.21,0.00013698,2]
[333125364,1721879438809,-1112.21,0.00013698,2]
[333125367,1721879438820,-1112.21,0.00013698,2]
[333125369,1721879438831,-1112.21,0.00013698,2]
[333125371,1721879438841,-1112.21,0.00013698,2]
[333125373,1721879438851,-1112.21,0.00013698,2]
[333125375,1721879438862,-1112.21,0.00013698,2]
[333125377,1721879438872,-1112.21,0.00013698,2]
[333125379,1721879438881,-1112.21,0.00013698,2]
[333125381,1721879438891,-1112.21,0.00013698,2]
[333125383,1721879438900,-1112.21,0.00013698,2]
[333125385,1721879438910,-1112.21,0.00013698,2]
[333125388,1721879438920,-1112.21,0.00013698,2]
[333125389,1721879438929,-1112.21,0.00013698,2]
[333125391,1721879438939,-1112.21,0.00013698,2]
[333125393,1721879438948,-1112.21,0.00013698,2]
[333125395,1721879438958,-1112.21,0.00013698,2]
[333125397,1721879438967,-1112.21,0.00013698,2]
[333125399,1721879438977,-1112.21,0.00013698,2]
[333125401,1721879438987,-1112.21,0.00013698,2]
[333125403,1721879438996,-1112.21,0.00013698,2]
[333125405,1721879439006,-1112.21,0.00013698,2]
[333125407,1721879439016,-1112.21,0.00013698,2]
[333125409,1721879439027,-1112.37527453,0.00013698,2]
[333125411,1721879439036,-505.14755196,0.00013698,2]
[333125413,1721879439046,-500.0,0.00013698,2]
[333125414,1721879439056,-500.0,0.00013698,2]
[333125416,1721879439066,-500.0,0.00013698,2]
[333125418,1721879439075,-500.0,0.00013698,2]
[333125420,1721879439086,-505.28780078,0.00013698,2]
[333125422,1721879439096,-501.60133166,0.00013698,2]
[333125424,1721879439105,-500.73041792,0.00013698,2]
[333125426,1721879439115,-501.62904518,0.00013698,2]
[333125429,1721879439125,-500.0,0.00013698,2]
[333125430,1721879439135,-503.67620346,0.00013698,2]
[333125432,1721879439145,-500.0,0.00013698,2]
[333125434,1721879439155,-500.0,0.00013698,2]
[333125436,1721879439166,-1723.97,0.00013698,2]
[333125438,1721879439176,-503.7688867,0.00013698,2]
[333125440,1721879439186,-500.0,0.00013698,2]
[333125442,1721879439196,-500.0,0.00013698,2]
[333125444,1721879439207,-500.80552169,0.00013698,2]
[333125446,1721879439217,-500.0,0.00013698,2]
[333125448,1721879439227,-693.86,0.00013698,2]
[333125450,1721879439237,-500.0,0.00013698,2]
[333125453,1721879439247,-501.4182311,0.00013698,2]
[333125455,1721879439259,-500.0,0.00013698,2]
[333125457,1721879439268,-1836.92,0.00013698,2]
[333125459,1721879439278,-500.0,0.00013698,2]
[333125461,1721879439288,-500.0,0.00013698,2]
[333125463,1721879439298,-501.469138,0.00013698,2]
[333125465,1721879439307,-500.0,0.00013698,2]
[333125467,1721879439317,-500.0,0.00013698,2]
[333125469,1721879439326,-469.06380217,0.00013698,2]
[333125471,1721879439336,-500.0,0.00013698,2]
[333125473,1721879439346,-500.0,0.00013698,2]
[333125475,1721879439356,-500.0,0.00013698,2]
[333125477,1721879439366,-500.0,0.00013698,2]
[333125479,1721879439375,-500.0,0.00013698,2]
[333125481,1721879439387,-500.0,0.00013698,2]
[333125483,1721879439398,-500.0,0.00013698,2]
[333125485,1721879439408,-500.0,0.00013698,2]
[333125486,1721879439418,-501.67212361,0.00013698,2]
[333125488,1721879439428,-500.0,0.00013698,2]
[333125490,1721879439440,-500.0,0.00013698,2]
[333125492,1721879439450,-500.0,0.00013698,2]
[333125494,1721879439460,-501.06227153,0.00013698,2]
[333125496,1721879439470,-500.0,0.00013698,2]
[333125498,1721879439480,-500.0,0.00013698,2]
[333125502,1721879439490,-500.0,0.00013698,2]
[333125504,1721879439499,-500.59529091,0.00013698,2]
[333125506,1721879439509,-500.0,0.00013698,2]
[333125508,1721879439519,-500.0,0.00013698,2]
[333125510,1721879439529,-500.0,0.00013698,2]
[333125512,1721879439539,-501.84068966,0.00013698,2]
[333125514,1721879439548,-500.70760007,0.00013698,2]
[333125517,1721879439558,-500.0,0.00013698,2]
[333125520,1721879439567,-500.0,0.00013698,2]
[333125522,1721879439577,-500.0,0.00013698,2]
[333125524,1721879439586,-500.0,0.00013698,2]
[333125526,1721879439596,-500.0,0.00013698,2]
[333125529,1721879439605,-500.0,0.00013698,2]
[333125531,1721879439615,-504.43162346,0.00013698,2]
[333125533,1721879439624,-500.0,0.00013698,2]
[333125535,1721879439634,-500.0,0.00013698,2]
[333125537,1721879439643,-500.0,0.00013698,2]
[333125539,1721879439655,-500.0,0.00013698,2]
[333125542,1721879439664,-500.0,0.00013698,2]
[333125544,1721879439674,-500.0,0.00013698,2]
[333125546,1721879439683,-500.0,0.00013698,2]
[333125548,1721879439693,-500.0,0.00013698,2]
[333125550,1721879439712,-500.0,0.00013698,2]
[333125552,1721879439723,-502.25901746,0.00013698,2]
[333125555,1721879439736,-500.0,0.00013698,2]
[333125557,1721879439746,-504.31050109,0.00013698,2]
[333125559,1721879439755,-500.0,0.00013698,2]
[333125561,1721879439765,-500.0,0.00013698,2]
[333125563,1721879439774,-500.0,0.00013698,2]
[333125565,1721879439784,-501.19607562,0.00013698,2]
[333125567,1721879439794,-500.0,0.00013698,2]
[333125569,1721879439803,-500.0,0.00013698,2]
[333125571,1721879439813,-500.0,0.00013698,2]
[333125573,1721879439823,-500.0,0.00013698,2]
[333125574,1721879439832,-502.15679184,0.00013698,2]
[333125576,1721879439842,-500.0,0.00013698,2]
[333125579,1721879439854,-230396.09846259,0.00013698,2]
[333125581,1721879439865,-502.24919647,0.00013698,2]
[333125583,1721879439875,-500.0,0.00013698,2]
[333125585,1721879439885,-545.39409708,0.00013698,2]
[333125587,1721879439895,-500.0,0.00013698,2]
[333125589,1721879439907,-505.3414026,0.00013698,2]
[333125590,1721879439919,-500.0,0.00013698,2]
[333125592,1721879439930,-500.0,0.00013698,2]
[333125595,1721879439941,-503.08553153,0.00013698,2]
[333125597,1721879439952,-500.0,0.00013698,2]
[333125599,1721879439962,-501.17638914,0.00013698,2]
[333125601,1721879439972,-501.27122874,0.00013698,2]
[333125603,1721879439984,-503.60558488,0.00013698,2]
[333125605,1721879439994,-503.57049156,0.00013698,2]
[333125607,1721879440004,-151.0,0.00013698,2]
[333125609,1721879440014,-151.0,0.00013698,2]
[333125611,1721879440025,-151.0,0.00013698,2]
[333125613,1721879440034,-151.0,0.00013698,2]
[333125615,1721879440044,-151.0,0.00013698,2]
[333125617,1721879440054,-151.0,0.00013698,2]
[333125619,1721879440063,-511.32530047,0.00013698,2]
[333125622,1721879440075,-500.0,0.00013698,2]
[333125624,1721879440087,-500.0,0.00013698,2]
[333125626,1721879440098,-500.0,0.00013698,2]
[333125629,1721879440111,-500.0,0.00013698,2]
[333125631,1721879440123,-500.0,0.00013698,2]
[333125633,1721879440135,-500.0,0.00013698,2]
[333125635,1721879440145,-419.63565238,0.00013698,2]
[333125637,1721879440162,-503.79821628,0.00013698,2]
[333125640,1721879440175,-500.0,0.00013698,2]
[333125642,1721879440187,-500.0,0.00013698,2]
[333125643,1721879440199,-610.78,0.00013698,2]
[333125644,1721879440210,-543.46075562,0.00013698,2]
[333125645,1721879440222,-353.64124811,0.00013698,2]
[333125646,1721879440233,-505.78055762,0.00013698,2]
[333125647,1721879440244,-500.0,0.00013698,2]
[333125648,1721879440254,-500.0,0.00013698,2]
[333125649,1721879440266,-503.59710374,0.00013698,2]
[333125651,1721879440278,-512.08549856,0.00013698,2]
[333125653,1721879440290,-631.75439276,0.00013698,2]
[333125655,1721879440300,-500.0,0.00013698,2]
[333125657,1721879440310,-500.0,0.00013698,2]
[333125659,1721879440320,-500.0,0.00013698,2]
[333125661,1721879440329,-500.0,0.00013698,2]
[333125663,1721879440339,-505.29772998,0.00013698,2]
[333125665,1721879440350,-1175.53,0.00013698,2]
[333125668,1721879440362,-500.0,0.00013698,2]
[333125670,1721879440374,-500.0,0.00013698,2]
[333125672,1721879440389,-987.58,0.00013698,2]
[333125674,1721879440400,-526.22,0.00013698,2]
[333125676,1721879440414,-505.15365133,0.00013698,2]
[333125679,1721879440426,-500.0,0.00013698,2]
[333125681,1721879440439,-500.0,0.00013698,2]
[333125683,1721879440450,-2905.55,0.00013698,2]
[333125685,1721879440463,-611.62,0.00013698,2]
[333125687,1721879440473,-500.0,0.00013698,2]
[333125689,1721879440484,-500.0,0.00013698,2]
[333125691,1721879440494,-500.0,0.00013698,2]
[333125694,1721879440504,-500.0,0.00013698,2]
[333125696,1721879440513,-500.0,0.00013698,2]
[333125698,1721879440523,-1449.01,0.00013698,2]
[333125700,1721879440533,-500.0,0.00013698,2]
[333125702,1721879440544,-621.26972532,0.00013698,2]
[333125704,1721879440556,-500.0,0.00013698,2]
[333125706,1721879440567,-500.0,0.00013698,2]
[333125709,1721879440579,-500.0,0.00013698,2]
[333125711,1721879440591,-500.0,0.00013698,2]
[333125713,1721879440603,-500.0,0.00013698,2]
[333125716,1721879440615,-1962.43,0.00013698,2]
[333125718,1721879440625,-500.0,0.00013698,2]
[333125720,1721879440636,-500.0,0.00013698,2]
[333125722,1721879440647,-500.0,0.00013698,2]
[333125724,1721879440658,-500.0,0.00013698,2]
[333125726,1721879440668,-500.0,0.00013698,2]
[333125728,1721879440680,-500.0,0.00013698,2]
[333125730,1721879440691,-500.0,0.00013698,2]
[333125732,1721879440701,-500.0,0.00013698,2]
[333125734,1721879440713,-500.0,0.00013698,2]
[333125737,1721879440725,-567.77,0.00013698,2]
[333125739,1721879440737,-500.0,0.00013698,2]
[333125741,1721879440747,-500.0,0.00013698,2]
[333125761,1721879440914,-500.0,0.00013698,2]
[333125763,1721879440925,-500.0,0.00013698,2]
[333125765,1721879440936,-500.0,0.00013698,2]
[333125768,1721879440948,-500.0,0.00013698,2]
[333125770,1721879440959,-500.0,0.00013698,2]
[333125772,1721879440968,-500.0,0.00013698,2]
[333125774,1721879440981,-500.0,0.00013698,2]
[333125775,1721879440992,-688.87,0.00013698,2]
[333125776,1721879441004,-500.0,0.00013698,2]
[333125777,1721879441015,-500.0,0.00013698,2]
[333125778,1721879441026,-500.0,0.00013698,2]
[333125779,1721879441037,-1594.62,0.00013698,2]
[333125780,1721879441049,-500.0,0.00013698,2]
[333125781,1721879441060,-500.0,0.00013698,2]
[333125782,1721879441071,-500.0,0.00013698,2]
[333125783,1721879441084,-500.0,0.00013698,2]
[333125784,1721879441095,-500.0,0.00013698,2]
[333125785,1721879441105,-1124.51,0.00013698,2]
[333125786,1721879441117,-967.4,0.00013698,2]
[333125787,1721879441127,-151.0,0.00013698,2]
[333125788,1721879441137,-151.0,0.00013698,2]
[333125789,1721879441149,-151.0,0.00013698,2]
[333125790,1721879441162,-151.0,0.00013698,2]
[333125792,1721879441173,-1483.21,0.00013698,2]
[333125794,1721879441186,-500.0,0.00013698,2]
[333125796,1721879441197,-500.0,0.00013698,2]
[333125798,1721879441207,-500.0,0.00013698,2]
[333125800,1721879441218,-500.0,0.00013698,2]
[333125802,1721879441228,-514.07271305,0.00013698,2]
[333125804,1721879441238,-500.0,0.00013698,2]
[333125806,1721879441248,-500.0,0.00013698,2]
[333125808,1721879441259,-513.09194325,0.00013698,2]
[333125810,1721879441270,-500.0,0.00013698,2]
[333125812,1721879441281,-500.80298381,0.00013698,2]
[333125814,1721879441292,-500.0,0.00013698,2]
[333125816,1721879441302,-500.0,0.00013698,2]
[333125819,1721879441312,-500.0,0.00013698,2]
[333125821,1721879441324,-1671.45,0.00013698,2]
[333125823,1721879441336,-506.13070366,0.00013698,2]
[333125825,1721879441347,-536.97,0.00013698,2]
[333125827,1721879441359,-151.0,0.00013698,2]
[333125829,1721879441372,-151.0,0.00013698,2]
[333125831,1721879441383,-151.0,0.00013698,2]
[333125833,1721879441398,-500.0,0.00013698,2]
[333125836,1721879441414,-151.0,0.00013698,2]
[333125838,1721879441427,-500.0,0.00013698,2]
[333125840,1721879441438,-500.0,0.00013698,2]
[333125842,1721879441448,-525.78238354,0.00013698,2]
[333125845,1721879441459,-1013.12,0.00013698,2]
[333125847,1721879441470,-511.85615867,0.00013698,2]
[333125849,1721879441480,-502.60978537,0.00013698,2]